{"text_format":"3","workbook":"xlsx","n_sheets":1,"sheets":["Spese iniziali"],"not_rendered":{"defined_names":1},"read":"whole","date_system":"1900"}

{"sheet":"Spese iniziali","index":0,"n_rows":120,"n_cols":4,"rows_kept":120,"merged":[[1,1,1,3],[10,1,10,3],[17,1,17,3],[25,1,25,3],[34,1,34,3],[42,1,42,3],[50,1,50,3],[55,1,55,3],[57,1,57,3],[59,1,59,3],[60,1,60,3],[69,1,69,3],[76,1,76,3],[81,1,81,3],[82,1,82,3],[90,1,90,3],[102,1,102,3],[110,1,110,3],[115,1,115,3]]}
["SPESE INIZIALI",null,null,"NOME SOCIETÀ"]
[null,"NOTA DA LEGGERE PRIMA DI USARE QUESTO FOGLIO DI LAVORO\nQuasi tutti coloro che hanno avviato un'azienda hanno sottovalutato i costi necessari e, di conseguenza, hanno dovuto gestire il rischio di avere riserve di capitali inadeguate. Per evitare questo problema occorre adottare un approccio rigoroso in merito alla ricerca e alla pianificazione. Il nostro modello Spese iniziali fornisce indicazioni dettagliate per questo processo.\n\nINIZIARE CON LA STIMA DELLE SPESE\nQuali costi deve sostenere l'azienda? Il fattore fondamentale da prendere in considerazione qui è l'attenzione per i dettagli. Per ogni categoria di spesa, stilare un elenco di tutto ciò che deve essere acquistato. Ciò include risorse tangibili (ad esempio, attrezzature, inventario) e servizi (ad esempio, ristrutturazioni, assicurazioni). Determinare quindi dove si potrebbero acquistare tali beni o servizi. Cercare più di un fornitore (fare ricerche di mercato). Non osservare solo il prezzo; anche le condizioni di pagamento, la consegna, l'affidabilità e l'assistenza sono elementi importanti. "]
[]
[null,"SPESE INIZIALI"]
[null,"EDIFICI/BENI IMMOBILI"," ","IMPORTO"]
[null,"Acquisto",null,{"v":0,"d":"€ 0.00"}]
[null,"Costruzione",null,{"v":0,"d":"€ 0.00"}]
[null,"Ristrutturazione",null,{"v":0,"d":"€ 0.00"}]
[null,"Altro",null,{"v":0,"d":"€ 0.00"}]
[null,"Totale",null,{"$f":"SUBTOTAL(109,BeniImmobili[IMPORTO])","v":{"v":0,"d":"€ 0.00"}}]
[]
[null,"MIGLIORIE BENI IN LOCAZIONE"," ","IMPORTO"]
[null,"Elemento 1",null,{"v":0,"d":"€ 0.00"}]
[null,"Elemento 2",null,{"v":0,"d":"€ 0.00"}]
[null,"Elemento 3",null,{"v":0,"d":"€ 0.00"}]
[null,"Elemento 4",null,{"v":0,"d":"€ 0.00"}]
[null,"Totale",null,{"$f":"SUBTOTAL(109,Migliorie[IMPORTO])","v":{"v":0,"d":"€ 0.00"}}]
[]
[null,"ELENCO BENI STRUMENTALI"," ","IMPORTO"]
[null,"Mobili",null,{"v":0,"d":"€ 0.00"}]
[null,"Apparecchiature",null,{"v":0,"d":"€ 0.00"}]
[null,"Accessori",null,{"v":0,"d":"€ 0.00"}]
[null,"Macchinari",null,{"v":0,"d":"€ 0.00"}]
[null,"Altro",null,{"v":0,"d":"€ 0.00"}]
[null,"Totale",null,{"$f":"SUBTOTAL(109,Capitale[IMPORTO])","v":{"v":0,"d":"€ 0.00"}}]
[]
[null,"SPESE DI AMMINISTRAZIONE E LOCAZIONE"," ","IMPORTO"]
[null,"Noleggio",null,{"v":0,"d":"€ 0.00"}]
[null,"Depositi",null,{"v":0,"d":"€ 0.00"}]
[null,"Spese legali e di contabilità",null,{"v":0,"d":"€ 0.00"}]
[null,"Premi assicurativi",null,{"v":0,"d":"€ 0.00"}]
[null,"Stipendi pre-apertura ",null,{"v":0,"d":"€ 0.00"}]
[null,"Altro",null,{"v":0,"d":"€ 0.00"}]
[null,"Totale",null,{"$f":"SUBTOTAL(109,SpeseDiAmministrazione[IMPORTO])","v":{"v":0,"d":"€ 0.00"}}]
[]
[null,"INVENTARIO DI APERTURA"," ","IMPORTO"]
[null,"Categoria 1",null,{"v":0,"d":"€ 0.00"}]
[null,"Categoria 2",null,{"v":0,"d":"€ 0.00"}]
[null,"Categoria 3",null,{"v":0,"d":"€ 0.00"}]
[null,"Categoria 4",null,{"v":0,"d":"€ 0.00"}]
[null,"Categoria 5",null,{"v":0,"d":"€ 0.00"}]
[null,"Totale",null,{"$f":"SUBTOTAL(109,OpeningInventory[IMPORTO])","v":{"v":0,"d":"€ 0.00"}}]
[]
[null,"SPESE PROMOZIONALI E PUBBLICITARIE"," ","IMPORTO"]
[null,"Pubblicità",null,{"v":0,"d":"€ 0.00"}]
[null,"Segnaletica",null,{"v":0,"d":"€ 0.00"}]
[null,"Stampa",null,{"v":0,"d":"€ 0.00"}]
[null,"Viaggi/intrattenimento",null,{"v":0,"d":"€ 0.00"}]
[null,"Altro/categorie aggiuntive",null,{"v":0,"d":"€ 0.00"}]
[null,"Totale",null,{"$f":"SUBTOTAL(109,SpesePromozionali[IMPORTO])","v":{"v":0,"d":"€ 0.00"}}]
[]
[null,"ALTRE SPESE"," ","IMPORTO"]
[null,"Altra spesa 1",null,{"v":0,"d":"€ 0.00"}]
[null,"Altra spesa 2",null,{"v":0,"d":"€ 0.00"}]
[null,"Totale",null,{"$f":"SUBTOTAL(109,AltreSpese[IMPORTO])","v":{"v":0,"d":"€ 0.00"}}]
[]
[null,"Riserva per imprevisti",null,{"v":0,"d":"€ 0.00"}]
[]
[null,"Capitale operativo ",null,{"v":0,"d":"€ 0.00"}]
[]
[null,"AGGIUNGERE UNA RISERVA PER IMPREVISTI\nÈ necessario spiegare come si è deciso di definire l'importo destinato alla riserva per gli imprevisti. \n\nDETERMINARE IL FLUSSO DI CASSA\nNon è possibile aprire con un conto corrente vuoto. È necessario disporre di un fondo cassa per sostenere le spese. Si dovrebbe creare una proiezione del flusso di cassa annuale. Ciò consente di fare una stima del capitale operativo necessario. Per il momento, lasciare questa riga vuota o inserire una stima approssimativa. Dopo aver completato il flusso di cassa, è possibile tornare indietro e immettere questo importo con estrema attenzione.\n\nIMMETTERE LE FONTI DI CAPITALE\nOra che è stata fatta una stima della quantità di capitale necessaria per iniziare, ci si deve concentrare sulla parte superiore di questo foglio di lavoro. Immettere gli importi che verranno resi disponibili dall'utente, i capitali forniti da partner o investitori e i prestiti."]
[]
[null,"FONTI DI CAPITALE"]
[null,"INVESTIMENTO DEI PROPRIETARI  (NOME E % DI PROPRIETÀ)"," ","IMPORTO"]
[null,"Nome e percentuale di proprietà",null,{"v":0,"d":"€ 0.00"}]
[null,"Altro investitore",null,{"v":0,"d":"€ 0.00"}]
[null,"Altro investitore",null,{"v":0,"d":"€ 0.00"}]
[null,"Altro investitore",null,{"v":0,"d":"€ 0.00"}]
[null,"Totale",null,{"$f":"SUBTOTAL(109,OwnersInvestments[IMPORTO])","v":{"v":0,"d":"€ 0.00"}}]
[]
[null,"PRESTITI BANCARI"," ","IMPORTO"]
[null,"Banca 1",null,{"v":0,"d":"€ 0.00"}]
[null,"Banca 2",null,{"v":0,"d":"€ 0.00"}]
[null,"Banca 3",null,{"v":0,"d":"€ 0.00"}]
[null,"Banca 4",null,{"v":0,"d":"€ 0.00"}]
[null,"Totale",null,{"$f":"SUBTOTAL(109,PrestitiBancari[IMPORTO])","v":{"v":0,"d":"€ 0.00"}}]
[]
[null,"ALTRI PRESTITI"," ","IMPORTO"]
[null,"Fonte 1",null,{"v":0,"d":"€ 0.00"}]
[null,"Fonte 2",null,{"v":0,"d":"€ 0.00"}]
[null,"Totale",null,{"$f":"SUBTOTAL(109,AltriPrestiti[IMPORTO])","v":{"v":0,"d":"€ 0.00"}}]
[]
[null,"FORNIRE PROVA DI GARANZIA\nSe si intende usare questo piano per supportare una richiesta di prestito bancario, usare la sezione accanto alla parte inferiore per vedere quali risorse vengono offerte come garanzia collaterale per assicurare il prestito e fare una stima del valore di tali elementi. Prepararsi a fornire una dimostrazione delle proprie stime dei valori collaterali."]
[]
[null,"PROSPETTO RIEPILOGATIVO"]
[null,"FONTE DI CAPITALE"," ","TOTALI"]
[null,"Investimenti dei proprietari e di altri",null,{"$f":"OwnersInvestments[[#Totals],[IMPORTO]]","v":{"v":0,"d":"€ 0.00"}}]
[null,"Prestiti bancari",null,{"$f":"PrestitiBancari[[#Totals],[IMPORTO]]","v":{"v":0,"d":"€ 0.00"}}]
[null,"Altri prestiti",null,{"$f":"AltriPrestiti[[#Totals],[IMPORTO]]","v":{"v":0,"d":"€ 0.00"}}]
[null,"Totale",null,{"$f":"SUBTOTAL(109,FontiDiCapitale[TOTALI])","v":{"v":0,"d":"€ 0.00"}}]
[]
[null,"SPESE INIZIALI"," ","TOTALI"]
[null,"Edifici/Beni immobili",null,{"$f":"BeniImmobili[[#Totals],[IMPORTO]]","v":{"v":0,"d":"€ 0.00"}}]
[null,"Migliorie beni in locazione",null,{"$f":"Migliorie[[#Totals],[IMPORTO]]","v":{"v":0,"d":"€ 0.00"}}]
[null,"Beni strumentali",null,{"$f":"Capitale[[#Totals],[IMPORTO]]","v":{"v":0,"d":"€ 0.00"}}]
[null,"Spese di amministrazione/locazione",null,{"$f":"SpeseDiAmministrazione[[#Totals],[IMPORTO]]","v":{"v":0,"d":"€ 0.00"}}]
[null,"Inventario di apertura",null,{"$f":"OpeningInventory[[#Totals],[IMPORTO]]","v":{"v":0,"d":"€ 0.00"}}]
[null,"Spese promozionali/pubblicitarie",null,{"$f":"SpesePromozionali[[#Totals],[IMPORTO]]","v":{"v":0,"d":"€ 0.00"}}]
[null,"Altre spese",null,{"$f":"AltreSpese[[#Totals],[IMPORTO]]","v":{"v":0,"d":"€ 0.00"}}]
[null,"Fondo di emergenza",null,{"$f":"SUM('Spese iniziali'!$C$57)","v":{"v":0,"d":"€ 0.00"}}]
[null,"Capitale operativo",null,{"$f":"SUM('Spese iniziali'!$C$59)","v":{"v":0,"d":"€ 0.00"}}]
[null,"Totale",null,{"$f":"SUBTOTAL(109,SpeseIniziali[TOTALI])","v":{"v":0,"d":"€ 0.00"}}]
[]
[null,"GARANZIE PER IL PROGETTO DI PRESTITO"]
[null,"GARANZIE COLLATERALI PER PRESTITI","DESCRIZIONE","VALORE"]
[null,"Beni immobili",null,{"v":0,"d":"€ 0.00"}]
[null,"Altra garanzia",null,{"v":0,"d":"€ 0.00"}]
[null,"Altra garanzia",null,{"v":0,"d":"€ 0.00"}]
[null,"Altra garanzia",null,{"v":0,"d":"€ 0.00"}]
[null,"Totale",null,{"$f":"SUBTOTAL(109,Garanzia[VALORE])","v":{"v":0,"d":"€ 0.00"}}]
[]
[null,"PROPRIETARI"," ","  "]
[null,"Nome qui"]
[null,"Altro proprietario"]
[null,"Altro proprietario"]
[]
[null,"GARANTI DEL PRESTITO (ESCLUSI I PROPRIETARI)"," ","  "]
[null,"Garante del prestito 1"]
[null,"Garante del prestito 2"]
[null,"Garante del prestito 3"]